fUST/lending_fUST_20260421
["ID","MTS","AMOUNT","RATE_DAILY","PERIOD"]
[420935999,1776747219986,500.0,0.00026241,120]
[420936000,1776747220216,439.33,0.00026241,120]
[420936001,1776747223331,500.0,0.00026241,120]
[420936002,1776747227969,500.0,0.00026241,120]
[420936003,1776747228199,500.0,0.00026241,120]
[420936004,1776747228426,500.0,0.00026241,120]
[420936005,1776747228773,500.0,0.00026241,120]
[420936006,1776747228896,500.0,0.00026241,120]
[420936007,1776747229141,500.0,0.00026241,120]
[420936008,1776747229380,500.0,0.00026241,120]
[420936009,1776747229607,500.0,0.00026241,120]
[420936010,1776747229836,500.0,0.00026241,120]
[420936011,1776747230053,500.0,0.00026241,120]
[420936012,1776747230685,500.0,0.00026241,120]
[420936013,1776747230949,500.0,0.00026241,120]
[420936014,1776747231219,500.0,0.00026241,120]
[420936015,1776747231436,500.0,0.00026241,120]
[420936016,1776747231673,500.0,0.00026241,120]
[420936017,1776747231907,500.0,0.00026241,120]
[420936018,1776747232127,303.98373845,0.00026241,120]
[420936019,1776747244163,500.0,0.00026241,120]
[420936020,1776747244392,500.0,0.00026241,120]
[420936021,1776747244621,500.0,0.00026241,120]
[420936022,1776747244890,500.0,0.00026241,120]
[420936023,1776747245113,500.0,0.00026241,120]
[420936024,1776747245479,500.0,0.00026241,120]
[420936025,1776747245706,500.0,0.00026241,120]
[420936026,1776747245954,500.0,0.00026241,120]
[420936027,1776747246176,445.24798604,0.00026241,120]
[420936028,1776747253888,500.0,0.00026241,120]
[420936029,1776747254116,500.0,0.00026241,120]
[420936030,1776747254377,503.80115959,0.00026241,120]
[420936031,1776747256185,500.0,0.00026241,120]
[420936032,1776747256429,500.0,0.00026241,120]
[420936033,1776747256666,500.0,0.00026241,120]
[420936034,1776747256888,500.0,0.00026241,120]
[420936035,1776747257110,500.0,0.00026241,120]
[420936036,1776747257343,500.0,0.00026241,120]
[420936037,1776747257560,495.59,0.00026241,120]
[420936038,1776747268919,500.0,0.00026241,120]
[420936039,1776747269145,500.0,0.00026241,120]
[420936040,1776747269369,500.0,0.00026241,120]
[420936041,1776747269598,500.0,0.00026241,120]
[420936042,1776747269866,500.0,0.00026241,120]
[420936043,1776747270056,500.0,0.00026241,120]
[420936044,1776747270305,574.44802791,0.00026241,120]
[420936045,1776747272784,519.24,0.00026241,120]
[420936046,1776747287685,500.0,0.00026241,120]
[420936047,1776747287913,500.0,0.00026241,120]
[420936048,1776747288142,500.0,0.00026241,120]
[420936049,1776747288368,500.0,0.00026241,120]
[420936050,1776747288603,500.0,0.00026241,120]
[420936051,1776747288831,500.0,0.00026241,120]
[420936052,1776747289065,193.35632673,0.00026241,120]
[420936053,1776747290607,156.05221732,0.00026241,120]
[420936054,1776747293306,500.0,0.00026241,120]
[420936055,1776747293533,500.0,0.00026241,120]
[420936056,1776747293791,500.0,0.00026241,120]
[420936057,1776747294002,500.0,0.00026241,120]
[420936058,1776747294243,500.0,0.00026241,120]
[420936059,1776747294472,500.0,0.00026241,120]
[420936060,1776747294744,500.0,0.00026241,120]
[420936061,1776747294995,500.0,0.00026241,120]
[420936062,1776747295228,500.0,0.00026241,120]
[420936063,1776747295458,500.0,0.00026241,120]
[420936064,1776747295691,305.4,0.00026241,120]
[420936065,1776747352608,500.0,0.0002623,120]
[420936066,1776747352824,550.15549794,0.0002623,120]
[420936067,1776747396090,500.0,0.0002623,120]
[420936068,1776747396317,500.0,0.0002623,120]
[420936069,1776747396557,500.0,0.0002623,120]
[420936070,1776747396793,448.88687849,0.0002623,120]
[420936072,1776747410684,500.0,0.0002623,120]
[420936073,1776747410915,500.0,0.0002623,120]
[420936076,1776747422071,500.0,0.0002623,120]
[420936077,1776747422317,500.0,0.0002623,120]
[420936078,1776747422570,500.0,0.0002623,120]
[420936079,1776747422804,500.0,0.0002623,120]
[420936080,1776747423039,574.8095257,0.0002623,120]
[420936087,1776747681220,-199.80412,9.999e-05,2]
[420936088,1776747681234,-100.19588,9.999e-05,2]
[420936089,1776747681243,-199.80412,0.0001,2]
[420936094,1776748026729,246.10323707,0.00024658,120]
[420936108,1776748160157,1999.99999999,0.0002465,120]
[420936109,1776748168021,10000.0,0.00024658,120]
[420936128,1776748232382,-3286.50611972,8.909e-05,10]
[420936277,1776748238759,-1658.55038045,8.909e-05,10]
[420936278,1776748238971,-54.94349983,8.909e-05,10]
[420936279,1776748238980,-1237.2047123,8.999e-05,2]
[420936280,1776748238989,-221.76589726,9.399e-05,2]
[420936281,1776748238999,-1200.0,9.972e-05,2]
[420936282,1776748239008,-190.97250751,9.973e-05,2]
[420936283,1776748239020,-309.02749249,9.973e-05,2]
[420936284,1776748239029,-500.0,9.973e-05,2]
[420936285,1776748239038,-300.0,9.996e-05,2]
[420936286,1776748239047,-300.0,9.997e-05,2]
[420936287,1776748239056,-300.0,9.997e-05,2]
[420936288,1776748239065,-300.0,9.997e-05,2]
[420936289,1776748239076,-641.35574993,9.998e-05,2]
[420936291,1776748239085,-2421.30291458,9.998e-05,2]
[420936292,1776748239094,-2421.30291458,9.998e-05,2]
[420936294,1776748239103,-2421.30291458,9.998e-05,2]
[420936296,1776748239112,-2421.30291458,9.998e-05,2]
[420936298,1776748239121,-2421.30291458,9.998e-05,2]
[420936300,1776748239130,-2421.30291458,9.998e-05,2]
[420936302,1776748239140,-2421.30291458,9.998e-05,2]
[420936303,1776748239148,-2421.30291458,9.998e-05,2]
[420936304,1776748239158,-2421.30291458,9.998e-05,2]
[420936305,1776748239166,-2421.30291458,9.998e-05,2]
[420936306,1776748239175,-2421.30291458,9.998e-05,2]
[420936307,1776748239184,-2421.30291458,9.998e-05,2]
[420936308,1776748239193,-679.82848034,9.998e-05,2]
[420936309,1776748239204,-1741.47443424,9.998e-05,2]
[420936310,1776748239213,-2421.30291458,9.998e-05,2]
[420936311,1776748239222,-2421.30291458,9.998e-05,2]
[420936312,1776748239231,-2421.30291458,9.998e-05,2]
[420936313,1776748239240,-2421.30291458,9.998e-05,2]
[420936314,1776748239249,-2421.30291458,9.998e-05,2]
[420936315,1776748239258,-2421.30291458,9.998e-05,2]
[420936316,1776748239267,-2199.13733781,9.998e-05,2]
[420936317,1776748239278,-585.36101394,9.998e-05,2]
[420936318,1776748239286,-1431.38168799,9.998e-05,2]
[420936336,1776748246739,-1232.21825907,9.998e-05,2]
[420936338,1776748368075,925.254,0.00024658,120]
[420936340,1776748432149,615.57733729,0.0002623,120]
[420936378,1776748871985,449.4,0.00026367,120]
[420936390,1776749356296,500000.01000901,0.0002465,120]
[420936391,1776749391739,5000.0,5e-05,10]
[420936392,1776749399753,211.30210208,5e-05,10]
[420936412,1776749432581,-4984.26666469,4.219e-05,2]
[420936421,1776749432691,-15.73333531,4.219e-05,2]
[420936423,1776749432701,-164.671164,4.261e-05,2]
[420936425,1776749432711,-164.671164,6.392e-05,2]
[420936427,1776749432720,-164.671164,8.523e-05,2]
[420936428,1776749432729,-232.57057932,9.079e-05,2]
[420936430,1776749432739,-1086.28411598,9.115e-05,2]
[420936431,1776749432750,-422.72918317,9.115e-05,2]
[420936432,1776749432760,-164.21163551,9.215e-05,2]
[420936459,1776749438909,-2278.95,9.123e-05,2]
[420936460,1776749439072,-2383.29178621,9.123e-05,2]
[420936461,1776749439081,-3233.05302057,9.215e-05,2]
[420936462,1776749439090,-1200.0,9.314e-05,2]
[420936463,1776749439100,-3677.25747972,9.315e-05,2]
[420936464,1776749439109,-300.0,9.397e-05,2]
[420936465,1776749439118,-300.0,9.397e-05,2]
[420936466,1776749439127,-300.0,9.398e-05,2]
[420936467,1776749439137,-300.0,9.398e-05,2]
[420936468,1776749439146,-300.0,9.398e-05,2]
[420936469,1776749439155,-300.0,9.398e-05,2]
[420936470,1776749439164,-300.0,9.398e-05,2]
[420936471,1776749439174,-300.0,9.398e-05,2]
[420936472,1776749439183,-300.0,9.398e-05,2]
[420936473,1776749439192,-300.0,9.398e-05,2]
[420936474,1776749439201,-300.0,9.398e-05,2]
[420936475,1776749439210,-300.0,9.398e-05,2]
[420936476,1776749439219,-300.0,9.398e-05,2]
[420936477,1776749439228,-300.0,9.398e-05,2]
[420936478,1776749439237,-300.0,9.398e-05,2]
[420936479,1776749439246,-300.0,9.398e-05,2]
[420936480,1776749439256,-300.0,9.398e-05,2]
[420936481,1776749439265,-50000.0,9.398e-05,2]
[420936482,1776749439274,-3748.64769065,9.415e-05,2]
[420936483,1776749439282,-4100.03072529,9.515e-05,2]
[420936484,1776749439292,-600.0,9.585e-05,2]
[420936485,1776749439300,-4451.41375993,9.615e-05,2]
[420936486,1776749439310,-595.048518,9.944e-05,2]
[420936487,1776749439319,-500.0,9.973e-05,2]
[420936488,1776749439328,-500.0,9.973e-05,2]
[420936489,1776749439337,-500.0,9.973e-05,2]
[420936490,1776749439346,-500.0,9.973e-05,2]
[420936491,1776749439355,-410.76141686,9.973e-05,2]
[420936492,1776749439364,-526.97639654,9.973e-05,2]
[420936493,1776749439373,-165.50871001,9.973e-05,2]
[420936494,1776749439382,-500.0,9.973e-05,2]
[420936495,1776749439391,-500.0,9.973e-05,2]
[420936496,1776749439400,-220.47839862,9.973e-05,2]
[420936497,1776749439409,-500.0,9.973e-05,2]
[420936498,1776749439418,-162.156851,9.997e-05,2]
[420936499,1776749439427,-378.59251824,9.999e-05,2]
[420936500,1776749439436,-151.0,9.999e-05,2]
[420936501,1776749439444,-151.0,9.999e-05,2]
[420936502,1776749439454,-151.0,9.999e-05,2]
[420936503,1776749439463,-225800.19588,0.0001,2]
[420936504,1776749439472,-10000.0,0.0001,2]
[420936505,1776749439481,-151.0,0.0001,2]
[420936506,1776749439491,-151.0,0.0001,2]
[420936507,1776749439500,-151.0,0.0001,2]
[420936508,1776749439509,-378.59251822,0.0001003,2]
[420936509,1776749439518,-378.59251822,0.0001016,2]
[420936510,1776749439528,-378.59251822,0.00010291,2]
[420936511,1776749439537,-300.0,0.00010337,2]
[420936512,1776749439546,-595.048518,0.00010363,2]
[420936513,1776749439555,-549800.86154238,0.00010376,2]
[420936514,1776749439567,-8246.18349024,0.00010376,2]
[420936520,1776749443917,-420.8168224,0.00010376,2]
[420936657,1776749447132,-71813.2633876,0.00010376,2]
[420936658,1776749447189,-182438.39127625,0.00010376,2]
[420936659,1776749447199,-151.0,0.00010376,2]
[420936660,1776749447208,-151.0,0.00010376,2]
[420936661,1776749447218,-151.0,0.00010376,2]
[420936662,1776749447227,-378.59251822,0.00010421,2]
[420936663,1776749447237,-775.22760953,0.00010521,2]
[420936664,1776749447246,-1012.00140683,0.00010521,2]
[420936665,1776749447256,-1000.0,0.00010521,2]
[420936666,1776749447265,-1000.0,0.00010521,2]
[420936667,1776749447275,-1000.0,0.00010521,2]
[420936668,1776749447285,-1000.0,0.00010521,2]
[420936669,1776749447295,-1000.0,0.00010521,2]
[420936670,1776749447304,-720.0,0.00010543,2]
[420936671,1776749447314,-500.0,0.000107,2]
[420936672,1776749447323,-595.048518,0.00010781,2]
[420936673,1776749447333,-300.0,0.00011,2]
[420936674,1776749447342,-1500.0,0.00011068,2]
[420936675,1776749447351,-1158.3747884,0.00011068,2]
[420936676,1776749447361,-1500.0,0.00011068,2]
[420936677,1776749447370,-1500.0,0.00011068,2]
[420936678,1776749447379,-274.43328359,0.00011079,2]
[420936679,1776749447389,-595.048518,0.000112,2]
[420936680,1776749447398,-500.0,0.00011263,2]
[420936681,1776749447408,-864.0,0.00011598,2]
[420936682,1776749447417,-1010.15278729,0.00011616,2]
[420936683,1776749447427,-2000.0,0.00011616,2]
[420936684,1776749447436,-2000.0,0.00011616,2]
[420936685,1776749447445,-595.048518,0.00011619,2]
[420936686,1776749447456,-4802.79679457,0.00011782,2]
[420936687,1776749447465,-418.1879344,0.00011826,2]
[420936688,1776749447474,-595.048518,0.00012037,2]
[420936689,1776749447483,-2500.0,0.00012164,2]
[420936690,1776749447492,-2500.0,0.00012164,2]
[420936691,1776749447502,-151.0,0.00012343,2]
[420936692,1776749447511,-1491.8214697,0.00012411,2]
[420936693,1776749447520,-167.6491347,0.00012411,2]
[420936694,1776749447529,-151.0,0.00012564,2]
[420936695,1776749447539,-151.0,0.00012564,2]
[420936696,1776749447549,-151.0,0.00012564,2]
[420936697,1776749447560,-3000.0,0.00012712,2]
[420936698,1776749447571,-3000.0,0.00012712,2]
[420936699,1776749447582,-1000.0,0.00012758,2]
[420936700,1776749447593,-301.24221362,0.00013,2]
[420936701,1776749447604,-316.29598787,0.00013079,2]
[420936702,1776749447615,-445.202766,0.00013119,2]
[420936703,1776749447625,-500.0,0.00013119,2]
[420936704,1776749447636,-537.6845,0.00013119,2]
[420936705,1776749447646,-500.0,0.00013119,2]
[420936706,1776749447657,-500.0,0.00013119,2]
[420936707,1776749447668,-500.0,0.00013119,2]
[420936708,1776749447678,-500.0,0.00013119,2]
[420936709,1776749447689,-500.0,0.00013119,2]
[420936710,1776749447699,-500.0,0.00013119,2]
[420936711,1776749447710,-500.0,0.00013119,2]
[420936712,1776749447720,-500.0,0.00013119,2]
[420936713,1776749447731,-500.0,0.00013119,2]
[420936714,1776749447741,-500.0,0.00013119,2]
[420936715,1776749447751,-500.0,0.00013119,2]
[420936716,1776749447761,-500.0,0.00013119,2]
[420936717,1776749447772,-500.0,0.00013119,2]
[420936718,1776749447782,-500.0,0.00013119,2]
[420936719,1776749447793,-500.0,0.00013119,2]
[420936720,1776749447803,-500.0,0.00013119,2]
[420936721,1776749447813,-500.0,0.00013119,2]
[420936722,1776749447822,-2150.738,0.00013119,2]
[420936723,1776749447832,-151.0,0.00013165,2]
[420936724,1776749447842,-455.2174277,0.00013165,2]
[420936725,1776749447852,-557.5788265,0.00013174,2]
[420936726,1776749447861,-151.0,0.00013176,2]
[420936727,1776749447871,-455.7290828,0.0001319,2]
[420936728,1776749447881,-151.0,0.0001319,2]
[420936729,1776749447890,-151.0,0.0001319,2]
[420936730,1776749447899,-151.0,0.0001319,2]
[420936731,1776749447909,-282.27296612,0.0001319,2]
[420936732,1776749447918,-578.20924308,0.00013229,2]
[420936733,1776749447928,-3500.0,0.0001326,2]
[420936734,1776749447937,-3500.0,0.0001326,2]
[420936735,1776749447947,-599.60298507,0.00013284,2]
[420936736,1776749447956,-881.14817569,0.00013311,2]
[420936737,1776749447966,-3521.06811004,0.00013311,2]
[420936738,1776749447976,-621.78829552,0.00013339,2]
[420936739,1776749447986,-227.8099384,0.00013394,2]
[420936740,1776749447995,-218.39,0.00013562,2]
[420936741,1776749448004,-218.39,0.00013562,2]
[420936742,1776749448014,-1000.0,0.000136,2]
[420936743,1776749448023,-1187280.48348113,0.00013616,30]
[420936744,1776749448033,-1648.6719712,0.0001362,2]
[420936745,1776749448043,-200.8561915,0.00013631,2]
[420936746,1776749448052,-445.202766,0.00013667,2]
[420936747,1776749448061,-2230.315306,0.00013667,2]
[420936748,1776749448070,-500.0,0.00013698,2]
[420936749,1776749448079,-500.0,0.00013698,2]
[420936750,1776749448088,-500.0,0.00013698,2]
[420936751,1776749448097,-833.58,0.00013698,2]
[420936752,1776749448106,-833.58,0.00013698,2]
[420936753,1776749448115,-833.58,0.00013698,2]
[420936754,1776749448124,-833.58,0.00013698,2]
[420936755,1776749448133,-833.58,0.00013698,2]
[420936756,1776749448143,-833.58,0.00013698,2]
[420936757,1776749448152,-833.58,0.00013698,2]
[420936758,1776749448161,-833.58,0.00013698,2]
[420936759,1776749448170,-833.58,0.00013698,2]
[420936760,1776749448179,-833.58,0.00013698,2]
[420936761,1776749448188,-833.58,0.00013698,2]
[420936762,1776749448198,-833.58,0.00013698,2]
[420936763,1776749448206,-833.58,0.00013698,2]
[420936764,1776749448215,-833.58,0.00013698,2]
[420936765,1776749448224,-833.58,0.00013698,2]
[420936766,1776749448234,-833.58,0.00013698,2]
[420936767,1776749448243,-833.58,0.00013698,2]
[420936768,1776749448252,-833.58,0.00013698,2]
[420936769,1776749448261,-833.58,0.00013698,2]
[420936770,1776749448270,-833.58,0.00013698,2]
[420936771,1776749448279,-833.58,0.00013698,2]
[420936772,1776749448289,-833.58,0.00013698,2]
[420936773,1776749448298,-833.58,0.00013698,2]
[420936774,1776749448307,-833.59501024,0.00013698,2]
[420936775,1776749448316,-1000.0,0.00013699,2]
[420936776,1776749448325,-151.0,0.00013699,2]
[420936777,1776749448334,-151.0,0.00013699,2]
[420936778,1776749448343,-151.0,0.00013699,2]
[420936779,1776749448352,-151.0,0.00013699,2]
[420936780,1776749448361,-151.0,0.00013699,2]
[420936781,1776749448371,-151.0,0.00013699,2]
[420936782,1776749448380,-151.0,0.00013699,2]
[420936783,1776749448389,-151.0,0.00013699,2]
[420936784,1776749448398,-151.0,0.00013699,2]
[420936785,1776749448407,-151.0,0.00013699,2]
[420936786,1776749448416,-157.4032,0.00013699,2]
[420936787,1776749448425,-298.004352,0.00013699,2]
[420936788,1776749448434,-171.0,0.00013699,2]
[420936789,1776749448444,-171.0,0.00013699,2]
[420936790,1776749448453,-171.0,0.00013699,2]
[420936791,1776749448462,-171.0,0.00013699,2]
[420936792,1776749448471,-171.0,0.00013699,2]
[420936793,1776749448480,-171.0,0.00013699,2]
[420936794,1776749448489,-171.0,0.00013699,2]
[420936795,1776749448498,-171.0,0.00013699,2]
[420936796,1776749448507,-500.0,0.00013699,2]
[420936797,1776749448516,-500.0,0.00013699,2]
[420936798,1776749448526,-500.0,0.00013699,2]
[420936799,1776749448535,-159.76816964,0.00013699,2]
[420936800,1776749448544,-500.0,0.00013699,2]
[420936801,1776749448553,-150.0,0.00013699,2]
[420936802,1776749448562,-150.0,0.00013699,2]
[420936803,1776749448571,-617.6966758,0.00013699,2]
[420936804,1776749448580,-500.0,0.00013699,2]
[420936805,1776749448589,-500.0,0.00013699,2]
[420936806,1776749448598,-500.0,0.00013699,2]
[420936807,1776749448607,-500.0,0.00013699,2]
[420936808,1776749448617,-1000.0,0.00013699,2]
[420936809,1776749448626,-4000.0,0.00013808,2]
[420936810,1776749448635,-4000.0,0.00013808,2]
[420936811,1776749448644,-389.40571449,0.00014012,2]
[420936812,1776749448653,-1557.62285796,0.00014012,2]
[420936813,1776749448827,-3501.14677899,0.00014012,2]
[420936814,1776749448837,-325.3138637,0.00014012,2]
[420936815,1776749448847,-1000.0,0.00014033,2]
[420936816,1776749448856,-244.0,0.00014033,2]
[420936817,1776749448866,-218.597906,0.00014069,7]
[420936818,1776749448875,-500.0,0.00014083,2]
[420936819,1776749448884,-500.0,0.00014083,2]
[420936820,1776749448893,-500.0,0.00014083,2]
[420936821,1776749448902,-500.0,0.00014083,2]
[420936822,1776749448912,-500.0,0.00014083,2]
[420936823,1776749448921,-500.0,0.00014083,2]
[420936824,1776749448930,-500.0,0.00014083,2]
[420936825,1776749448939,-500.0,0.00014083,2]
[420936826,1776749448948,-500.0,0.00014083,2]
[420936827,1776749448957,-500.0,0.00014083,2]
[420936828,1776749448966,-500.0,0.00014083,2]
[420936829,1776749448976,-500.0,0.00014083,2]
[420936830,1776749448985,-500.0,0.00014083,2]
[420936831,1776749448995,-500.0,0.00014083,2]
[420936832,1776749449004,-160.0,0.000141,2]
[420936833,1776749449014,-281.786362,0.00014165,7]
[420936834,1776749449023,-153.0,0.00014166,21]
[420936835,1776749449032,-2312.83697232,0.00014215,2]
[420936836,1776749449041,-558.29947456,0.00014247,2]
[420936837,1776749449050,-1000.0,0.00014247,2]
[420936838,1776749449060,-1000.0,0.00014247,2]
[420936839,1776749449068,-1000.0,0.00014247,2]
[420936840,1776749449078,-250.0,0.00014247,2]
[420936841,1776749449087,-250.0,0.00014247,2]
[420936842,1776749449096,-1000.0,0.00014247,2]
[420936843,1776749449105,-1000.0,0.00014247,2]
[420936844,1776749449115,-1000.0,0.00014247,2]
[420936845,1776749449124,-1000.0,0.00014247,2]
[420936846,1776749449133,-458.015199,0.00014255,2]
[420936847,1776749449143,-4500.0,0.00014356,2]
[420936848,1776749449151,-4500.0,0.00014356,2]
[420936849,1776749449160,-2000.0,0.00014398,7]
[420936850,1776749449170,-500.0,0.00014454,2]
[420936851,1776749449179,-500.0,0.00014454,2]
[420936852,1776749449188,-500.0,0.00014454,2]
[420936853,1776749449196,-500.0,0.00014464,2]
[420936854,1776749449206,-500.0,0.00014464,2]
[420936855,1776749449215,-500.0,0.00014464,2]
[420936856,1776749449224,-500.0,0.00014464,2]
[420936857,1776749449232,-500.0,0.00014464,2]
[420936858,1776749449242,-197.55268387,0.00014475,2]
[420936859,1776749449251,-500.0,0.00014475,2]
[420936860,1776749449260,-500.0,0.00014475,2]
[420936861,1776749449268,-500.0,0.00014475,2]
[420936862,1776749449278,-462.03976039,0.00014475,2]
[420936863,1776749449287,-500.0,0.00014475,2]
[420936864,1776749449296,-500.0,0.00014475,2]
[420936865,1776749449305,-469.51380525,0.00014475,2]
[420936866,1776749449314,-151.5,0.00014475,2]
[420936867,1776749449323,-151.5,0.00014475,2]
[420936868,1776749449332,-151.5,0.00014475,2]
[420936869,1776749449341,-151.5,0.00014475,2]
[420936870,1776749449350,-201.23495772,0.00014475,2]
[420936871,1776749449359,-647.241,0.00014476,2]
[420936872,1776749449368,-1438.976,0.00014476,2]
[420936873,1776749449378,-2210.0,0.00014476,2]
[420936874,1776749449388,-739.0,0.00014476,2]
[420936875,1776749449396,-184.0,0.00014476,2]
[420936876,1776749449405,-441.0,0.00014476,2]
[420936877,1776749449414,-500.0,0.00014545,2]
[420936878,1776749449424,-500.0,0.00014545,2]
[420936879,1776749449432,-500.0,0.00014545,2]
[420936880,1776749449441,-500.0,0.00014545,2]
[420936881,1776749449451,-500.0,0.00014545,2]
[420936882,1776749449460,-500.0,0.00014545,2]
[420936883,1776749449469,-500.0,0.00014545,2]
[420936884,1776749449479,-500.0,0.00014545,2]
[420936885,1776749449488,-500.0,0.00014545,2]
[420936886,1776749449497,-500.0,0.00014545,2]
[420936887,1776749449506,-500.0,0.00014545,2]
[420936888,1776749449515,-500.0,0.00014545,2]
[420936889,1776749449524,-500.0,0.00014545,2]
[420936890,1776749449533,-500.0,0.00014545,2]
[420936891,1776749449543,-500.0,0.00014545,2]
[420936892,1776749449552,-500.0,0.00014545,2]
[420936893,1776749449562,-150.0,0.00014545,2]
[420936894,1776749449571,-500.0,0.00014545,2]
[420936895,1776749449580,-500.0,0.00014545,2]
[420936896,1776749449589,-500.0,0.00014545,2]
[420936897,1776749449598,-194.90522702,0.00014601,21]
[420936898,1776749449607,-631.02653211,0.00014631,2]
[420936899,1776749449615,-1000.0,0.00014631,2]
[420936900,1776749449624,-1000.0,0.00014631,2]
[420936901,1776749449633,-1000.0,0.00014631,2]
[420936902,1776749449642,-1000.0,0.00014631,2]
[420936903,1776749449651,-1000.0,0.00014631,2]
[420936904,1776749449660,-1000.0,0.00014631,2]
[420936905,1776749449669,-1000.79502564,0.00014631,2]
[420936906,1776749449677,-1000.0,0.00014631,2]
[420936907,1776749449686,-1000.0,0.00014631,2]
[420936908,1776749449695,-1001.01854431,0.00014631,2]
[420936909,1776749449704,-1000.0,0.00014631,2]
[420936910,1776749449713,-1000.0,0.00014631,2]
[420936911,1776749449722,-1061.74410891,0.00014631,2]
[420936912,1776749449732,-500.0,0.00014686,2]
[420936913,1776749449741,-500.0,0.00014686,2]
[420936914,1776749449750,-500.0,0.00014686,2]
[420936915,1776749449759,-158.34335578,0.00014686,2]
[420936916,1776749449768,-713712.3137199,0.000147,2]
[420936917,1776749481701,-300.0,9.396e-05,2]
[420936918,1776749481728,-534.0,9.396e-05,2]
[420936919,1776749481758,-12.34318606,9.397e-05,2]
[420936920,1776749481820,-6.95727624,9.397e-05,2]
[420936921,1776749511153,-199.80412,9.397e-05,2]
[420936922,1776749511199,-446.73494606,9.397e-05,2]
[420936923,1776749848132,500.0,0.00026137,120]
[420936937,1776750631826,-504.19050601,9.396e-05,2]
[420936939,1776750631835,-226.33857305,9.443e-05,2]
[420936940,1776750631844,-300.0,9.583e-05,2]
[420936942,1776750631854,-1200.0,9.583e-05,2]
[420936944,1776750631864,-600.0,9.584e-05,2]
[420936946,1776750631873,-300.0,9.584e-05,2]
[420936948,1776750631882,-300.0,9.584e-05,2]
[420936950,1776750631891,-300.0,9.584e-05,2]
[420936952,1776750631901,-300.0,9.584e-05,2]
[420936954,1776750631911,-300.0,9.584e-05,2]
[420936956,1776750631920,-300.0,9.584e-05,2]
[420936958,1776750631930,-300.0,9.584e-05,2]
[420936960,1776750631939,-300.0,9.584e-05,2]
[420936962,1776750631949,-2813.99668188,9.584e-05,2]
[420936964,1776750631959,-242.1853162,0.0001,2]
[420936966,1776750631968,-6389.27317953,0.0001,2]
[420936970,1776750631994,-3610.72682047,0.0001,2]
[420936972,1776750632004,-720.0,0.00010542,2]
[420936974,1776750632014,-445.202766,0.00011008,2]
[420936976,1776750632024,-500.0,0.00011008,2]
[420936978,1776750632033,-146.80405001,0.00011008,2]
[420936980,1776750632043,-353.19594999,0.00011008,2]
[420936982,1776750632053,-30.95957417,0.00011008,2]
[420937209,1776750646051,-469.04042583,0.00011008,2]
[420937210,1776750646061,-500.0,0.00011008,2]
[420937211,1776750646071,-500.0,0.00011008,2]
[420937212,1776750646080,-500.0,0.00011008,2]
[420937213,1776750646089,-500.0,0.00011008,2]
[420937214,1776750646099,-500.0,0.00011008,2]
[420937215,1776750646108,-500.0,0.00011008,2]
[420937216,1776750646117,-500.0,0.00011008,2]
[420937217,1776750646127,-500.0,0.00011008,2]
[420937218,1776750646136,-500.0,0.00011008,2]
[420937219,1776750646146,-500.0,0.00011008,2]
[420937220,1776750646155,-500.0,0.00011008,2]
[420937221,1776750646164,-500.0,0.00011008,2]
[420937222,1776750646174,-500.0,0.00011008,2]
[420937223,1776750646184,-500.0,0.00011008,2]